Cogmind - Beta 14 @@@ ROGUE MODE // 2024.10.11 @ 16:32:38 Player: saltine Result: Destroyed by Shrapnel Trap Performance ------------- Evolutions (0) 0 Regions Visited (2) 400 Robots Destroyed (32) 160 Value Destroyed (826) 826 Prototype IDs (3) 60 Alien Tech Used (0) 0 Bonus (0) 0 TOTAL SCORE: 1446 Bonus ------- None Cogmind --------- Core Integrity 0/250 Matter 300/300 Energy 246/250 System Corruption 0% Temperature Cool (2) Movement Treading (160) Location -10/Subcaves Parts ------- > --- POWER (1) -------- Ion Engine > --- PROPULSION (2) --- Light Treads Light Treads > --- UTILITY (2) ------ Medium Storage Unit > --- WEAPON (2) ------- Subdweller Beam Cannon Light Cannon > --- INVENTORY (10) --- Subdweller Power Source Light Treads Light Treads Light Treads Scrap Shield Subdweller Beam Cannon Assault Rifle Battle Rifle Multitool Peak State ------------ > --- POWER ------------ Light Ion Engine > --- PROPULSION ------- Light Treads Light Treads > --- UTILITY ---------- Improved Heat Sink Medium Storage Unit > --- WEAPON ----------- Autogun Autogun > --- INVENTORY -------- Ion Engine Light Treads Light Treads Light Treads Light Treads Light Treads Light Treads Improved Terrain Scanner Assault Rifle Light Cannon [Rating: 12] Favorites ----------- Power Ion Engine Engine Ion Engine Propulsion Light Treads Treads Light Treads Leg Aluminum Leg Utility Medium Storage Unit Device Seismic Detector Storage Medium Storage Unit Protection Light Armor Plating Weapon Autogun Energy Cannon Subdweller Beam Cannon Ballistic Gun Autogun Ballistic Cannon Light Cannon Special Weapon Mining Laser Build | -11 -10 -10 ------- Run | Yrd Mat Sub Slots Evolved . | . . . Power . | . . . Propulsion . | . . . Utility . | . . . Weapon . | . . . Parts Attached 21 | 3 9 9 Power 2 | . 1 1 Engine 2 | . 1 1 Core . | . . . Reactor . | . . . Propulsion 5 | 2 1 2 Treads 5 | 2 1 2 Leg . | . . . Wheel . | . . . Hover . | . . . Flight . | . . . Utility 5 | 1 4 . Device 3 | 1 2 . Storage 1 | . 1 . Processor . | . . . Hackware . | . . . Protection 1 | . 1 . Artifact . | . . . Weapon 9 | . 3 6 Energy Gun . | . . . Energy Cannon 1 | . . 1 Ballistic Gun 2 | . 2 . Ballistic Cannon 4 | . 1 3 Launcher . | . . . Special Weapon 2 | . . 2 Impact Weapon . | . . . Slashing Weapon . | . . . Piercing Weapon . | . . . Special Melee Weapon . | . . . Unidentified Prototypes . | . . . Parts Lost 5 | . 1 4 Power 1 | . . 1 Propulsion 1 | . . 1 Utility 2 | . 1 1 Weapon 1 | . . 1 Highest Loss Streak 2 | . 1 2 To Critical Strikes . | . . . Average Slot Usage (%) 95 | . 99 91 Engine 13 | . 14 13 Treads 28 | . 28 28 Device 7 | . 8 6 Storage 14 | . 14 14 Protection 2 | . 5 . Energy Cannon 4 | . . 7 Ballistic Gun 16 | . 26 10 Ballistic Cannon 5 | . 1 9 Peak Build Rating 12 | 7 12 10 Average Rating 8 | 6 9 9 On Entrance 7 | 6 7 10 Naked Turns . | . . . Heaviest Build 27 | 11 20 27 Greatest Support 40 | 40 40 40 Greatest Overweight (x) . | . . . Average Overweight (x) . | . . . Largest Inventory Capacity 10 | 8 10 10 Average Capacity 9 | 8 9 10 Most Carried 10 | 7 10 10 Average Carried 9 | 6 8 9 Final Capacity 10 | 8 10 10 Final Carried 10 | 7 10 10 Class Distribution -------------------- 100% | Mutant Dominant Class ---------------- Mutant | -10/Materials Mutant | -10/Subcaves Resources | -11 -10 -10 ----------- Run | Yrd Mat Sub Matter Collected 877 | 276 234 367 Remotely . | . . . Salvage Created 1045 | 124 409 512 Parts 65 | 9 28 28 Haulers Intercepted 1 | . 1 . Recyclers Shooed 3 | . 3 . Parts Field Recycled . | . . . Retrieved Matter . | . . . Parts Self-Destructed 10 | . . 10 Prevented . | . . . Kills | -11 -10 -10 ------- Run | Yrd Mat Sub Combat Hostiles Destroyed 24 | . 11 13 Guns 13 | . 11 2 Cannons 11 | . . 11 Classes Destroyed 8 | 2 4 2 Worker 1 | . 1 . Tunneler 5 | 3 2 . Hauler 1 | . 1 . Recycler 1 | 1 . . Swarmer 6 | . 6 . Grunt 7 | . 5 2 Sentry 1 | . . 1 Subdweller 10 | . . 10 Best Kill Streak 4 | 2 4 2 Combat Bots Only 3 | . 3 2 Max Kills in Single Turn 2 | 1 2 1 Gunslinging 1 | . 1 . Exploded . | . . . Melee . | . . . Uniques/NPCs Destroyed . | . . . Combat | -11 -10 -10 -------- Run | Yrd Mat Sub Hostile Shots Fired 120 | . 59 61 Missed 28 | . 14 14 Damage Taken 1487 | . 483 1004 Core 255 | . 83 172 Absorbed by Shields . | . . . Core Remaining (%) 100 | 100 . . Volleys Fired 133 | 23 62 48 Largest 2 | 2 2 2 Hottest 119 | 40 58 119 Shots Fired 257 | 46 122 89 Gun 202 | 46 119 37 Cannon 52 | . 3 49 Launcher . | . . . Special 3 | . . 3 Kinetic 232 | 46 122 64 Thermal 25 | . . 25 Explosive . | . . . Electromagnetic . | . . . Robot Hit Streak 19 | 6 9 19 Robot Miss Streak 4 | 3 4 2 Penetration Max . | . . . Secondary Targets 2 | . 2 . Max Gunslinging Chain 1 | . 1 . Shots Hit Robots 171 | 30 80 61 Core Hits 62 | 8 35 19 Critical Kills 2 | . 2 . Critical Parts Destroyed 1 | . 1 . Critical Strikes 4 | . 3 1 Destroy 3 | . 3 . Blast 1 | . . 1 Melee Attacks . | . . . Impact . | . . . Slashing . | . . . Piercing . | . . . Sneak Attacks . | . . . Combat Hostiles . | . . . Follow-up Attacks . | . . . Damage Inflicted 2164 | 248 759 1157 Guns 1443 | 248 758 437 Cannons 720 | . . 720 Explosions . | . . . Melee . | . . . Ramming 1 | . 1 . Kinetic 1721 | 248 758 715 Thermal 442 | . . 442 Explosive . | . . . Electromagnetic . | . . . Impact . | . . . Slashing . | . . . Piercing . | . . . Highest Corruption . | . . . Average Corruption . | . . . Corruption Purged . | . . . Corruption Blocked . | . . . Overload Shots . | . . . Overflow Damage . | . . . Projectiles . | . . . Explosions . | . . . Melee . | . . . Knockbacks 2 | . . 2 Impact . | . . . Kinetic 2 | . . 2 Secondary . | . . . Self-Inflicted Damage . | . . . Shots . | . . . Rammed 2 | . 2 . Targets Rammed 3 | . 3 . Kicked . | . . . Crushed 1 | . 1 . Highest Temperature 48 | . 48 29 Average Temperature 10 | . 9 11 Received Heat Transfer 345 | . 150 195 Siege Activations . | . . . Robots Corrupted . | . . . Combat Hostiles . | . . . Parts Fried . | . . . Impact Corruptions . | . . . Robots Melted . | . . . Combat Hostiles . | . . . Parts Melted . | . . . Heat Transferred 592 | . . 592 Parts Sabotaged . | . . . Parts Stolen . | . . . Parts Stripped . | . . . Power Chain Reactions . | . . . Alert | -11 -10 -10 ------- Run | Yrd Mat Sub Peak Influence 133 | 20 133 . Initial 13 | . 13 . Average 53 | 12 59 . Maximum Alert Level . | . . . Low Security (%) 100 | 100 100 . Level 1 . | . . . Level 2 . | . . . Level 3 . | . . . Level 4 . | . . . Level 5 . | . . . High Security . | . . . Max Security . | . . . Squads Dispatched . | . . . Investigation . | . . . Extermination . | . . . Reinforcement . | . . . Assault . | . . . Garrison . | . . . Intercept . | . . . Searches Triggered . | . . . Construction Impeded . | . . . Haulers Reinforced . | . . . Active Scanning Responses . | . . . Cargo Convoy Interrupts . | . . . Stealth | -11 -10 -10 --------- Run | Yrd Mat Sub Distress Signals 2 | . 2 . Communications Jammed . | . . . Distress Signals . | . . . Times Spotted 33 | . 21 12 Peak Tracking Total 4 | . 4 2 Tactical Retreats . | . . . Traps | -11 -10 -10 ------- Run | Yrd Mat Sub Traps Triggered 3 | . 1 2 Indirectly . | . . . Trap Hack Attempts . | . . . Triggered . | . . . Disarmed . | . . . Reprogrammed . | . . . Reused . | . . . Traps Extracted . | . . . Installed . | . . . Triggered . | . . . Machines | -11 -10 -10 ---------- Run | Yrd Mat Sub Machines Disabled . | . . . Max in Single Turn . | . . . Machines Repaired . | . . . Machines Dismantled . | . . . Machines Sabotaged . | . . . Overloaded Fab Kills . | . . . Hacking | -11 -10 -10 --------- Run | Yrd Mat Sub Machines Accessed 8 | . 8 . Terminals 6 | . 6 . Fabricators . | . . . Repair Stations . | . . . Recycling Units 2 | . 2 . Scanalyzers . | . . . Garrison Access . | . . . Total Hacks 19 | . 19 . Successful 9 | . 9 . Failed 10 | . 10 . Catastrophic 2 | . 2 . Database Lockouts . | . . . Manual 2 | . 2 . Terminals 15 | . 15 . Fabricators . | . . . Repair Stations . | . . . Recycling Units 4 | . 4 . Scanalyzers . | . . . Garrison Access . | . . . Terminal Hacks 8 | . 8 . Prototype ID Bank 2 | . 2 . Locate Traps 1 | . 1 . Maintenance Status 2 | . 2 . Hauler Manifests 2 | . 2 . Zone Layout 1 | . 1 . Fabricator Hacks . | . . . Repair Station Hacks . | . . . Recycling Unit Hacks 1 | . 1 . Retrieve Components 1 | . 1 . Scanalyzer . | . . . Garrison Access Hacks . | . . . Unauthorized Hacks . | . . . Terminals . | . . . Fabricators . | . . . Repair Stations . | . . . Recycling Units . | . . . Scanalyzers . | . . . Garrison Access . | . . . Data Cores Recovered . | . . . Used . | . . . Hacking Detections 8 | . 8 . Full Trace Events . | . . . Feedback Events . | . . . Feedback Blocked . | . . . Robot Schematics Acquired . | . . . Robots Built . | . . . Authchips . | . . . Time . | . . . Total Robot Build Rating . | . . . Part Schematics Acquired . | . . . Parts Built . | . . . Authchips . | . . . Time . | . . . Total Part Build Rating . | . . . Parts Repaired . | . . . Time . | . . . Parts Recycled . | . . . Recycled Matter . | . . . Retrieved Matter . | . . . Retrieved Components 10 | . 10 . Parts Scanalyzed . | . . . Part Schematics Acquired . | . . . Parts Damaged . | . . . Bothacking | -11 -10 -10 ------------ Run | Yrd Mat Sub Used RIF Installer . | . . . Robots Hacked . | . . . Non-combat . | . . . Combat . | . . . Robot Hacks Applied . | . . . Relay Couplers Released . | . . . Fabnet Peak Effective % . | . . . Robots Rewired . | . . . Allies Hacked . | . . . Hacks Repelled . | . . . Allies | -11 -10 -10 -------- Run | Yrd Mat Sub Total Allies . | . . . Largest Group . | . . . Highest-Rated Group . | . . . Highest-Rated Ally . | . . . Total Orders . | . . . Ally Attacks . | . . . Total Damage . | . . . Kills . | . . . Allies Corrupted . | . . . Allies Melted . | . . . Intel | -11 -10 -10 ------- Run | Yrd Mat Sub Robot Analysis Total . | . . . Derelict Logs Recovered . | . . . Drone Launches . | . . . Drone Recoveries . | . . . Exploration | -11 -10 -10 ------------- Run | Yrd Mat Sub Turns Passed 3165 | 175 1202 1788 Spaces Moved 1556 | 69 498 989 Core . | . . . Treads 1556 | 69 498 989 Legs . | . . . Wheels . | . . . Hover . | . . . Flight . | . . . Fastest Speed 160 | 160 160 160 Average Speed 160 | 160 160 160 Slowest Speed 160 | 160 160 160 Overloaded Moves . | . . . Propulsion Burnouts . | . . . Robots Hopped . | . . . Cave-ins Triggered . | . . . Exploration Rate (%) 47 | 4 70 68 Regions Visited 2 Branch Regions 1 Pre-discovered Areas 1 | . . 1 Known Exits Taken . | . . . Unknown Exits Taken 2 | 1 1 . Scrap Searched 2 | . . 2 Spaces Dug . | . . . Terrain Destroyed 1 | . . 1 Melee . | . . . Projectile 1 | . . 1 AOE . | . . . Terrain Rammed . | . . . Walls Destroyed . | . . . Machines Disabled . | . . . Actions | -11 -10 -10 --------- Run | Yrd Mat Sub Total 2012 | 95 809 1108 Wait 259 | . 213 46 Move 1554 | 68 497 989 Hop . | . . . Pick Up 21 | 1 12 8 Fast Attach 4 | 1 2 1 Attach 3 | . . 3 Detach . | . . . Swap 14 | 2 7 5 Drop 21 | . 13 8 Fire 133 | 23 62 48 Melee . | . . . Ram . | . . . Kick . | . . . Crush 3 | . 3 . Escape Stasis . | . . . Rewire . | . . . Trap . | . . . Miscellaneous . | . . . Route ------- -11/Scrapyard -10/Materials (discovered 6 exits: [*Mat x3] / [*Min x2] / [*Sub]) -10/Subcaves (discovered 2 exits: [*Mat x2]) History --------- Turn | Location | Event 12 | -11/Scrapyard | Discovered new exit (range 3) 176 | -11/Scrapyard | Entered Materials 316 | -10/Materials | Build established: Mutant 338 | -10/Materials | Discovered new exit (range 14) 689 | -10/Materials | Discovered new exit (range 10) 977 | -10/Materials | Discovered new exit (range 12) 1081 | -10/Materials | Discovered new exit (range 16) 1103 | -10/Materials | Discovered new exit (range 9) 1337 | -10/Materials | Discovered new exit (range 6) 1378 | -10/Materials | Entered Subcaves 1491 | -10/Subcaves | Shifting Twisted Machinery released Sub. Machine Gun 1498 | -10/Subcaves | Shifting Twisted Machinery released Piercing Trap 1812 | -10/Subcaves | A swath of the cavern ceiling suddenly collapsed 2047 | -10/Subcaves | Discovered new exit (range 8) 2051 | -10/Subcaves | Shifting Twisted Machinery released Battle Cannon 2054 | -10/Subcaves | Shifting Twisted Machinery released Flamer 2096 | -10/Subcaves | Learned location of Zion (-6) 2096 | -10/Subcaves | Met a Zionite searching for "candidates" 2157 | -10/Subcaves | Core integrity fell below 50% 2712 | -10/Subcaves | Discovered new exit (range 10) 2929 | -10/Subcaves | Shifting Twisted Machinery released Piercing Trap 2947 | -10/Subcaves | Shifting Twisted Machinery released Mak. Power Source 3166 | -10/Subcaves | Destroyed by Shrapnel Trap Last Messages --------------- 02520_ Found 57 Matter. 02525_ Dropped Mining Laser. 02525_ Acquired Sub. Beam Cannon. 02578_ G-34 Mercenary destroyed. 02583_ G-47 Trooper destroyed. 02588_ Aluminum Leg fries itself beyond repair. 02589_ Acquired 12 matter. 02591_ Particle Gun fries itself beyond repair. 02594_ Ion Engine fries itself beyond repair. 02595_ Aluminum Leg fries itself beyond repair. 02712_ EXIT=FOUND 02735_ Dropped Dirty Datajack. 02735_ Acquired Multitool. 02740_ NP-8KM(R): "MADSUB!" 02793_ NP-8KM(R) destroyed. 02812_ Acquired 4 matter. Piercing Trap falls loose from the Twisted Machinery. Mak. Power Source falls loose from the Twisted Machinery. 03166_ Triggered Shrapnel Trap. 03166_ An expanding cloud of shrapnel blasts out in all directions. Map ----- +----------------------------------------------------+ | ### # ###??????????????????????????????? | | ! ## #??????????????????????????????? | | ### #??????????????????????????????? | | ##[&*## #??????????????????????????????? | | ###& &!# #???????????????????????????????? | | ??##[* # ###???????????????????????????????? | | ??## ##?????????????????????????????????? | | ?## #####??????????????????????????????? | | ## ##?????????????????????????????? | | # ^ ##????????????????????????????? | | ## #????????????????????????????? | | # # ## ##???????????????????????????? | | ### ##??????????????????????????? | | #?## #???????????#??????????????? | | ## # #??# ####??????? ## ????????????? | | ##### #??# ##????? ????????????? | | ### #####??## #???? ????????????? | | ## ##???????# ##???? ?????????????? | | #????????# ###???? ??????????????? | | #### #????????# #????? ????????????????? | | #??####????????## ^ ####?# #?????????????????? | | ##??????????????#### ## ##????????????????? | | ###???????????????## ###??????????????? | | ##???????????????# #??????????????? | | ##??????????????# #??????????????? | | #??????????????# @ ##??????????????? | | # %#??????????????### ######???????????????? | | ### ##????????????????# #????????????????????? | | ?# ##?????????????????# #????????????????????? | | ?## #??????????????????######????????????????????? | | ### #????????????????????????????????????????????? | | "" "##???????????????????????????????????????????? | | """#????????????????????????????????????? ?????# | | ######????????????????????????????????????"" ????# | | "#??????????????????????????????????????? " ??# | | "##?????????????????????????????????????" " " ## | | " #???????????????????????????????????????"" """ | | ##???????????????????????????????????? "" | | #????????????????????????????????????? "" | | #?????????????????????????????????????# """" | | #??????????????????????????????????????? """""" | | ##???????????????????????????????????????? "" "# | | " ##???????????????????????????????????????? ? | | "" #???????????????????????????????????????? ?? | | " ##??????????????????????????????????????? ?? | | " #??????????????????????????????????????## ??? | | #???????????????????????????????????????# ????? | | #?????????????????????????????????????????????? | | #?????????????????????????????????????????????? | | ##???????????????????????????????????????? ## | +----------------------------------------------------+ Best States ------------- Heat Dissipation 39 Energy Generation 10 Energy Capacity 250 Matter Stores 300 Matter Capacity 300 Sight Range 16 Terrain Scan Density 10 Armor Coverage 150 Evasion (%) 40 Recoil Reduction 2 Item Schematics ----------------- None Robot Schematics ------------------ None Fabricated ------------ Nothing Alien Tech Used ----------------- None Achievements -------------- None Challenges ------------ None Game ------ Seed SuperdenseArchitectShredder Manual? 0 Play Time 00:19:03 Cumulative 252.6 hours Start 2024.10.11 @ 16:17:47 End 2024.10.11 @ 16:32:38 Sessions 1 Manual Loads 0 Difficulty Rogue Special Mode None Game No. 151 Rogue 151 Adventurer 0 Explorer 0 Win Type - Total 12 Types 3/1/5/1/1/0/1/0/0 Lore% 76 Gallery% 78 Achievement% 69 Wizard Run 0 Options --------- Layout 0 ASCII 0 Keyboard 0 Movement Arrows Keybinds 0 Fullscreen 2 Font 18/SmallcapsGlow Map View 76x50 Zoom Use 0% Tactical HUD 1 Map Filters NONE Filters NONE Steam 1 RUN: 62c4bc66-2ff8-4e5b-a92f-80d22badb61a